[Event "Early-Titled-Tuesday-Blitz-February-20-2024"]
[Site "Chess.com"]
[Date "2024.02.20"]
[Round "3"]
[White "aldebaran52"]
[Black "Rozhkov_V"]
[Result "0-1"]
[WhiteElo "2179"]
[BlackElo "2411"]
[TimeControl "180+1"]
[EndTime "8:28:21 PST"]
[Termination "Rozhkov_V won by checkmate"]

1. d4 {[%clk 0:02:59.2]} 1... d5 {[%clk 0:02:58.3]} 2. Nf3 {[%clk 0:02:58.5]}
2... Nf6 {[%clk 0:02:57.2]} 3. g3 {[%clk 0:02:59.2]} 3... g6 {[%clk 0:02:57.5]}
4. Bg2 {[%clk 0:02:59.9]} 4... Bg7 {[%clk 0:02:58.4]} 5. O-O {[%clk 0:03:00]}
5... c6 {[%clk 0:02:58.9]} 6. c4 {[%clk 0:03:00.5]} 6... dxc4 {[%clk 0:02:59.8]}
7. a4 {[%clk 0:02:58.8]} 7... O-O {[%clk 0:02:45.7]} 8. Nc3 {[%clk 0:02:57.7]}
8... a5 {[%clk 0:02:34.7]} 9. e4 {[%clk 0:02:57.3]} 9... Nbd7 {[%clk 0:02:28.5]}
10. e5 {[%clk 0:02:55.3]} 10... Nd5 {[%clk 0:02:25.8]} 11. e6 {[%clk 0:02:52.6]}
11... fxe6 {[%clk 0:02:25.3]} 12. Ng5 {[%clk 0:02:51.5]} 12... N7f6 {[%clk
0:02:19.9]} 13. Qe2 {[%clk 0:02:49.1]} 13... Qd6 {[%clk 0:02:14]} 14. Nce4
{[%clk 0:02:40.1]} 14... Nxe4 {[%clk 0:02:02.8]} 15. Nxe4 {[%clk 0:02:40.6]}
15... Qd8 {[%clk 0:01:48.7]} 16. Qxc4 {[%clk 0:02:35.9]} 16... Nb6 {[%clk
0:01:44.3]} 17. Qb3 {[%clk 0:02:31.3]} 17... Bxd4 {[%clk 0:01:38.4]} 18. Bh6
{[%clk 0:02:22.4]} 18... Rf5 {[%clk 0:01:24]} 19. Rad1 {[%clk 0:02:20.5]} 19...
Rd5 {[%clk 0:01:16.8]} 20. Ng5 {[%clk 0:02:15]} 20... Rd6 {[%clk 0:00:57.9]} 21.
Bh3 {[%clk 0:02:14.5]} 21... c5 {[%clk 0:00:33.9]} 22. Qa2 {[%clk 0:01:36]}
22... c4 {[%clk 0:00:20.1]} 23. Bg4 {[%clk 0:01:33.2]} 23... Bxf2+ {[%clk
0:00:18.8]} 24. Kxf2 {[%clk 0:01:32.2]} 24... Rd2+ {[%clk 0:00:19.2]} 25. Rxd2
{[%clk 0:01:26.1]} 25... Qxd2+ {[%clk 0:00:20.1]} 26. Be2 {[%clk 0:01:25.7]}
26... Nd5 {[%clk 0:00:10.5]} 27. Nf3 {[%clk 0:01:22.8]} 27... Qxh6 {[%clk
0:00:10]} 28. Qb1 {[%clk 0:01:22.2]} 28... Qe3+ {[%clk 0:00:10.3]} 29. Kg2
{[%clk 0:01:22.1]} 29... Qxe2+ {[%clk 0:00:10.1]} 30. Rf2 {[%clk 0:01:21.7]}
30... Ne3+ {[%clk 0:00:10]} 31. Kg1 {[%clk 0:01:21.1]} 31... Qd1+ {[%clk
0:00:10.7]} 32. Qxd1 {[%clk 0:01:20.3]} 32... Nxd1 {[%clk 0:00:11.6]} 33. Rd2
{[%clk 0:01:20.6]} 33... Ne3 {[%clk 0:00:12.2]} 34. Rd8+ {[%clk 0:01:21]} 34...
Kg7 {[%clk 0:00:12.3]} 35. Ne5 {[%clk 0:01:21.2]} 35... b6 {[%clk 0:00:11.6]}
36. Kf2 {[%clk 0:01:18]} 36... Nd5 {[%clk 0:00:10.9]} 37. Nc6 {[%clk 0:01:16.6]}
37... Bb7 {[%clk 0:00:10.5]} 38. Rxa8 {[%clk 0:01:15.6]} 38... Bxa8 {[%clk
0:00:11.4]} 39. Nd4 {[%clk 0:01:15.8]} 39... c3 {[%clk 0:00:11.6]} 40. bxc3
{[%clk 0:01:15.4]} 40... Nxc3 {[%clk 0:00:12.5]} 41. Ke3 {[%clk 0:01:14.4]}
41... Nxa4 {[%clk 0:00:11.8]} 42. Kd3 {[%clk 0:01:15.1]} 42... e5 {[%clk
0:00:11.7]} 43. Nb3 {[%clk 0:01:14.5]} 43... Nc5+ {[%clk 0:00:11.4]} 44. Kc4
{[%clk 0:01:14.5]} 44... Nxb3 {[%clk 0:00:11.2]} 45. Kxb3 {[%clk 0:01:14.1]}
45... b5 {[%clk 0:00:11.8]} 46. g4 {[%clk 0:01:13.8]} 46... Bd5+ {[%clk
0:00:12.7]} 47. Kc3 {[%clk 0:01:13.4]} 47... g5 {[%clk 0:00:13.5]} 48. Kd3
{[%clk 0:01:13.3]} 48... Kf6 {[%clk 0:00:13.8]} 49. Kc3 {[%clk 0:01:13.6]} 49...
b4+ {[%clk 0:00:14]} 50. Kb2 {[%clk 0:01:13.8]} 50... a4 {[%clk 0:00:14.9]} 51.
h3 {[%clk 0:01:14]} 51... a3+ {[%clk 0:00:15.4]} 52. Kb1 {[%clk 0:01:13.6]}
52... Bc4 {[%clk 0:00:16.3]} 53. Ka1 {[%clk 0:01:14]} 53... e4 {[%clk
0:00:16.7]} 54. Kb1 {[%clk 0:01:14.1]} 54... b3 {[%clk 0:00:16.8]} 55. Kc1
{[%clk 0:01:14.8]} 55... e3 {[%clk 0:00:17.3]} 56. Kd1 {[%clk 0:01:15.1]} 56...
a2 {[%clk 0:00:17.8]} 57. Kc1 {[%clk 0:01:15.4]} 57... a1=Q# {[%clk 0:00:18.3]}
0-1

[Event "Early-Titled-Tuesday-Blitz-February-20-2024"]
[Site "Chess.com"]
[Date "2024.02.20"]
[Round "3"]
[White "maurovargas01"]
[Black "ChessFanNM"]
[Result "0-1"]
[WhiteElo "1879"]
[BlackElo "2318"]
[TimeControl "180+1"]
[EndTime "8:28:22 PST"]
[Termination "ChessFanNM won on time"]

1. e4 {[%clk 0:02:59.3]} 1... c6 {[%clk 0:02:58.2]} 2. Nc3 {[%clk 0:02:57.6]}
2... d5 {[%clk 0:02:58.1]} 3. d3 {[%clk 0:02:57.8]} 3... dxe4 {[%clk 0:02:25.4]}
4. Nxe4 {[%clk 0:02:57.6]} 4... Nf6 {[%clk 0:02:22.2]} 5. Qe2 {[%clk 0:02:51.1]}
5... Nxe4 {[%clk 0:02:06]} 6. Qxe4 {[%clk 0:02:48.8]} 6... Qd5 {[%clk
0:02:05.6]} 7. Qe3 {[%clk 0:02:16.6]} 7... Bg4 {[%clk 0:01:59.3]} 8. Be2 {[%clk
0:02:10.7]} 8... Bxe2 {[%clk 0:01:58.3]} 9. Nxe2 {[%clk 0:02:05.4]} 9... e6
{[%clk 0:01:58.3]} 10. Nf4 {[%clk 0:01:58.4]} 10... Qa5+ {[%clk 0:01:53.9]} 11.
Bd2 {[%clk 0:01:55.8]} 11... Qd8 {[%clk 0:01:50.4]} 12. O-O {[%clk 0:01:54.8]}
12... Nd7 {[%clk 0:01:50.2]} 13. Bc3 {[%clk 0:01:51.4]} 13... Bc5 {[%clk
0:01:40.9]} 14. d4 {[%clk 0:01:38.3]} 14... Be7 {[%clk 0:01:38.4]} 15. Nh5
{[%clk 0:01:29.6]} 15... Bf6 {[%clk 0:01:32.6]} 16. Nxf6+ {[%clk 0:01:26.9]}
16... Nxf6 {[%clk 0:01:32.2]} 17. Qg5 {[%clk 0:01:16]} 17... O-O {[%clk
0:01:16.2]} 18. Rad1 {[%clk 0:01:14.3]} 18... Nd5 {[%clk 0:01:15.2]} 19. Qg3
{[%clk 0:01:04]} 19... a5 {[%clk 0:01:08.8]} 20. Bd2 {[%clk 0:01:02.9]} 20...
Qf6 {[%clk 0:01:03.6]} 21. Bg5 {[%clk 0:00:57.7]} 21... Qg6 {[%clk 0:01:03.3]}
22. c4 {[%clk 0:00:54.6]} 22... Nb4 {[%clk 0:01:01.6]} 23. a3 {[%clk 0:00:51.4]}
23... Na6 {[%clk 0:00:54.4]} 24. Qe3 {[%clk 0:00:49.7]} 24... h6 {[%clk
0:00:52.6]} 25. Bf4 {[%clk 0:00:46]} 25... Rfd8 {[%clk 0:00:51]} 26. c5 {[%clk
0:00:41.3]} 26... Rd5 {[%clk 0:00:50.1]} 27. Rfe1 {[%clk 0:00:33.5]} 27... Rad8
{[%clk 0:00:47.2]} 28. Bd6 {[%clk 0:00:30.8]} 28... a4 {[%clk 0:00:36.5]} 29.
Qf4 {[%clk 0:00:08.3]} 29... Rd7 {[%clk 0:00:35.4]} 30. Re3 {[%clk 0:00:07.5]}
30... Rf5 {[%clk 0:00:34.4]} 31. Qh4 {[%clk 0:00:05.1]} 31... Rh5 {[%clk
0:00:34.1]} 32. Qg3 {[%clk 0:00:01.7]} 32... Rg5 {[%clk 0:00:33.9]} 0-1

[Event "Early-Titled-Tuesday-Blitz-February-20-2024"]
[Site "Chess.com"]
[Date "2024.02.20"]
[Round "3"]
[White "mary-sanna"]
[Black "JoliyRoger"]
[Result "0-1"]
[WhiteElo "2152"]
[BlackElo "2538"]
[TimeControl "180+1"]
[EndTime "8:28:26 PST"]
[Termination "JoliyRoger won on time"]

1. d4 {[%clk 0:03:00.6]} 1... Nf6 {[%clk 0:02:59.1]} 2. c4 {[%clk 0:03:00.4]}
2... e6 {[%clk 0:02:59.7]} 3. Nf3 {[%clk 0:02:59.9]} 3... c5 {[%clk 0:02:59.8]}
4. d5 {[%clk 0:02:59.6]} 4... exd5 {[%clk 0:03:00.3]} 5. cxd5 {[%clk 0:03:00.5]}
5... d6 {[%clk 0:03:01.2]} 6. Nc3 {[%clk 0:03:00.2]} 6... g6 {[%clk 0:03:02.1]}
7. e4 {[%clk 0:03:00.3]} 7... Bg7 {[%clk 0:03:02.7]} 8. Be3 {[%clk 0:03:00.3]}
8... O-O {[%clk 0:03:02]} 9. Bd3 {[%clk 0:02:34.6]} 9... Re8 {[%clk 0:02:56.7]}
10. Nd2 {[%clk 0:02:29.4]} 10... a6 {[%clk 0:02:56.3]} 11. a4 {[%clk 0:02:29]}
11... Ng4 {[%clk 0:02:49.6]} 12. Bf4 {[%clk 0:02:10.6]} 12... f5 {[%clk
0:02:28.6]} 13. O-O {[%clk 0:01:56.6]} 13... g5 {[%clk 0:02:28.3]} 14. h3 {[%clk
0:01:47.9]} 14... gxf4 {[%clk 0:02:27.7]} 15. hxg4 {[%clk 0:01:45.8]} 15... fxg4
{[%clk 0:02:28.6]} 16. e5 {[%clk 0:01:17.8]} 16... Bxe5 {[%clk 0:02:27.3]} 17.
Nde4 {[%clk 0:01:14.5]} 17... Qh4 {[%clk 0:02:15.8]} 18. Re1 {[%clk 0:01:05.3]}
18... g3 {[%clk 0:01:58.7]} 19. Qf3 {[%clk 0:00:13.4]} 19... gxf2+ {[%clk
0:00:41.8]} 20. Qxf2 {[%clk 0:00:12.1]} 20... Bd4 {[%clk 0:00:41.7]} 21. Nf6+
{[%clk 0:00:10.2]} 21... Qxf6 {[%clk 0:00:39.3]} 22. Rxe8+ {[%clk 0:00:10]}
22... Kf7 {[%clk 0:00:36.9]} 23. Rxc8 {[%clk 0:00:08.9]} 23... Bxf2+ {[%clk
0:00:35.8]} 24. Kxf2 {[%clk 0:00:09.8]} 24... Qd4+ {[%clk 0:00:36.3]} 25. Ke2
{[%clk 0:00:09.4]} 25... Qe3+ {[%clk 0:00:36.9]} 26. Kd1 {[%clk 0:00:05.4]}
26... Qxd3+ {[%clk 0:00:37.3]} 27. Kc1 {[%clk 0:00:05.9]} 27... Qf1+ {[%clk
0:00:36.2]} 28. Nd1 {[%clk 0:00:05.9]} 28... Qc4+ {[%clk 0:00:27.5]} 29. Nc3
{[%clk 0:00:03]} 29... Qf1+ {[%clk 0:00:27.8]} 30. Nd1 {[%clk 0:00:03]} 30...
Qxg2 {[%clk 0:00:27.5]} 31. Ra3 {[%clk 0:00:02.9]} 31... Qxd5 {[%clk 0:00:23.5]}
0-1

[Event "Early-Titled-Tuesday-Blitz-February-20-2024"]
[Site "Chess.com"]
[Date "2024.02.20"]
[Round "3"]
[White "ZuraTqebuchava"]
[Black "kacperkarwowski"]
[Result "0-1"]
[WhiteElo "2253"]
[BlackElo "2528"]
[TimeControl "180+1"]
[EndTime "8:28:26 PST"]
[Termination "kacperkarwowski won by resignation"]

1. e4 {[%clk 0:02:59.8]} 1... e5 {[%clk 0:02:57.7]} 2. Nf3 {[%clk 0:03:00]} 2...
Nc6 {[%clk 0:02:51.8]} 3. Bb5 {[%clk 0:02:59.6]} 3... f5 {[%clk 0:02:50.4]} 4.
d3 {[%clk 0:02:57.5]} 4... fxe4 {[%clk 0:02:49.3]} 5. dxe4 {[%clk 0:02:56.1]}
5... Nf6 {[%clk 0:02:49.9]} 6. Nc3 {[%clk 0:02:47.7]} 6... Bb4 {[%clk
0:02:49.3]} 7. Bc4 {[%clk 0:02:34.8]} 7... d6 {[%clk 0:02:47.8]} 8. Bg5 {[%clk
0:02:28.8]} 8... Qe7 {[%clk 0:02:46.3]} 9. Qd3 {[%clk 0:02:25.1]} 9... Be6
{[%clk 0:02:44.8]} 10. Bxe6 {[%clk 0:02:22.1]} 10... Qxe6 {[%clk 0:02:45.7]} 11.
Bxf6 {[%clk 0:02:22.4]} 11... gxf6 {[%clk 0:02:45.5]} 12. a3 {[%clk 0:02:18]}
12... Bxc3+ {[%clk 0:02:44.7]} 13. Qxc3 {[%clk 0:02:17.5]} 13... O-O {[%clk
0:02:44.6]} 14. O-O-O {[%clk 0:02:11.7]} 14... Kh8 {[%clk 0:02:43.4]} 15. Kb1
{[%clk 0:02:11.1]} 15... f5 {[%clk 0:02:42.2]} 16. exf5 {[%clk 0:02:10]} 16...
Qxf5 {[%clk 0:02:43.1]} 17. h4 {[%clk 0:02:05.3]} 17... Rae8 {[%clk 0:02:39.4]}
18. h5 {[%clk 0:02:04.5]} 18... Qf6 {[%clk 0:02:37.7]} 19. Qb3 {[%clk 0:01:52]}
19... e4 {[%clk 0:02:16.4]} 20. Nh4 {[%clk 0:01:50.4]} 20... Nd4 {[%clk
0:02:01.3]} 21. Qg3 {[%clk 0:01:42.3]} 21... Nf5 {[%clk 0:01:16.5]} 22. Nxf5
{[%clk 0:01:37.7]} 22... Qxf5 {[%clk 0:01:17.4]} 23. h6 {[%clk 0:01:37.5]} 23...
Qe5 {[%clk 0:01:11]} 24. Qe3 {[%clk 0:01:32.3]} 24... b6 {[%clk 0:01:03.1]} 25.
Rh4 {[%clk 0:01:19.7]} 25... d5 {[%clk 0:00:52.6]} 26. c3 {[%clk 0:00:49.3]}
26... Rf6 {[%clk 0:00:50]} 27. Rg4 {[%clk 0:00:43.4]} 27... c6 {[%clk
0:00:33.2]} 28. Rg5 {[%clk 0:00:41.7]} 28... Qf4 {[%clk 0:00:29.8]} 29. Qh3
{[%clk 0:00:30.7]} 29... Qxg5 {[%clk 0:00:24.2]} 30. Qd7 {[%clk 0:00:29.9]}
30... Rfe6 {[%clk 0:00:19.2]} 31. Rh1 {[%clk 0:00:27.8]} 31... Qe7 {[%clk
0:00:18.1]} 32. Qxe7 {[%clk 0:00:16.3]} 32... R8xe7 {[%clk 0:00:19]} 33. Rh5
{[%clk 0:00:16.9]} 33... Rf6 {[%clk 0:00:18]} 34. Rg5 {[%clk 0:00:17.4]} 34...
Rxh6 {[%clk 0:00:15.6]} 35. Rf5 {[%clk 0:00:17.3]} 35... Kg8 {[%clk 0:00:14.9]}
0-1

[Event "Early-Titled-Tuesday-Blitz-February-20-2024"]
[Site "Chess.com"]
[Date "2024.02.20"]
[Round "3"]
[White "50Tugrik"]
[Black "lluiss"]
[Result "1-0"]
[WhiteElo "2412"]
[BlackElo "2181"]
[TimeControl "180+1"]
[EndTime "8:28:28 PST"]
[Termination "50Tugrik won on time"]

1. Nf3 {[%clk 0:03:00.9]} 1... d5 {[%clk 0:02:58.8]} 2. d4 {[%clk 0:03:00.1]}
2... c6 {[%clk 0:02:58.8]} 3. g3 {[%clk 0:02:55.5]} 3... e6 {[%clk 0:02:58.6]}
4. Bg2 {[%clk 0:02:56.4]} 4... f5 {[%clk 0:02:58.8]} 5. c4 {[%clk 0:02:51.2]}
5... Nf6 {[%clk 0:02:59]} 6. O-O {[%clk 0:02:50.8]} 6... Be7 {[%clk 0:02:58.8]}
7. Nc3 {[%clk 0:02:50.7]} 7... O-O {[%clk 0:02:58.6]} 8. Nd2 {[%clk 0:02:51.1]}
8... Ne4 {[%clk 0:02:46.4]} 9. f3 {[%clk 0:02:50.1]} 9... Nxc3 {[%clk
0:02:16.5]} 10. bxc3 {[%clk 0:02:49.5]} 10... c5 {[%clk 0:02:17]} 11. cxd5
{[%clk 0:02:47.9]} 11... exd5 {[%clk 0:02:13.8]} 12. Bb2 {[%clk 0:02:19.8]}
12... cxd4 {[%clk 0:02:13.3]} 13. cxd4 {[%clk 0:02:15.1]} 13... f4 {[%clk
0:02:01]} 14. gxf4 {[%clk 0:02:04.8]} 14... Rxf4 {[%clk 0:02:00.9]} 15. e3
{[%clk 0:02:03.8]} 15... Rh4 {[%clk 0:01:54.4]} 16. e4 {[%clk 0:01:58.4]} 16...
Nc6 {[%clk 0:01:39]} 17. exd5 {[%clk 0:01:10.1]} 17... Qxd5 {[%clk 0:01:31.5]}
18. Qb3 {[%clk 0:01:09.4]} 18... Be6 {[%clk 0:01:11.1]} 19. f4 {[%clk
0:00:59.3]} 19... Qxb3 {[%clk 0:01:02.7]} 20. Nxb3 {[%clk 0:00:52.9]} 20... Nb4
{[%clk 0:00:38.3]} 21. d5 {[%clk 0:00:46.9]} 21... Bxd5 {[%clk 0:00:35.4]} 22.
Bxd5+ {[%clk 0:00:25.3]} 22... Nxd5 {[%clk 0:00:34.6]} 23. Rae1 {[%clk
0:00:25.9]} 23... Bf6 {[%clk 0:00:29.2]} 24. Bxf6 {[%clk 0:00:22.8]} 24... Nxf6
{[%clk 0:00:28.6]} 25. Re7 {[%clk 0:00:21.5]} 25... Ng4 {[%clk 0:00:28.6]} 26.
Rc1 {[%clk 0:00:17]} 26... Nxh2 {[%clk 0:00:09.7]} 27. Rcc7 {[%clk 0:00:16.6]}
27... Nf3+ {[%clk 0:00:06]} 28. Kf2 {[%clk 0:00:16.4]} 28... Nh2 {[%clk
0:00:02.1]} 29. Rxg7+ {[%clk 0:00:16.2]} 29... Kh8 {[%clk 0:00:03]} 30. Kg3
{[%clk 0:00:13.7]} 30... Rh6 {[%clk 0:00:01.4]} 31. Rxb7 {[%clk 0:00:14]} 1-0

[Event "Early-Titled-Tuesday-Blitz-February-20-2024"]
[Site "Chess.com"]
[Date "2024.02.20"]
[Round "3"]
[White "koncheto"]
[Black "invisible_s0ul"]
[Result "1/2-1/2"]
[WhiteElo "2422"]
[BlackElo "2203"]
[TimeControl "180+1"]
[EndTime "8:28:30 PST"]
[Termination "Game drawn by repetition"]

1. e4 {[%clk 0:02:55.8]} 1... c5 {[%clk 0:03:00.3]} 2. Nf3 {[%clk 0:02:54.3]}
2... Nc6 {[%clk 0:02:58.7]} 3. d4 {[%clk 0:02:54.3]} 3... cxd4 {[%clk
0:02:58.5]} 4. Nxd4 {[%clk 0:02:55.2]} 4... Nf6 {[%clk 0:02:58.4]} 5. Nc3 {[%clk
0:02:53.8]} 5... e6 {[%clk 0:02:59]} 6. a3 {[%clk 0:02:53.3]} 6... Bc5 {[%clk
0:02:57.6]} 7. Be3 {[%clk 0:02:49.4]} 7... Qb6 {[%clk 0:02:41.7]} 8. Na4 {[%clk
0:02:22.5]} 8... Qa5+ {[%clk 0:02:23.2]} 9. c3 {[%clk 0:01:59.2]} 9... Bxd4
{[%clk 0:01:37.7]} 10. Bxd4 {[%clk 0:01:57.8]} 10... Nxe4 {[%clk 0:01:29.4]} 11.
b4 {[%clk 0:01:15.8]} 11... Qf5 {[%clk 0:01:02.6]} 12. Be3 {[%clk 0:00:58.1]}
12... d5 {[%clk 0:00:44]} 13. Bd3 {[%clk 0:00:55.7]} 13... Ne5 {[%clk
0:00:37.5]} 14. O-O {[%clk 0:00:48.9]} 14... Nxd3 {[%clk 0:00:19.4]} 15. Qxd3
{[%clk 0:00:49.8]} 15... O-O {[%clk 0:00:19.7]} 16. Rfe1 {[%clk 0:00:36.7]}
16... Bd7 {[%clk 0:00:15.1]} 17. Nc5 {[%clk 0:00:20.2]} 17... Nxc5 {[%clk
0:00:14.6]} 18. Qxf5 {[%clk 0:00:20.4]} 18... e5 {[%clk 0:00:13.2]} 19. Bxc5
{[%clk 0:00:21.3]} 19... Bxf5 {[%clk 0:00:12.9]} 20. Rxe5 {[%clk 0:00:18.8]}
20... Be6 {[%clk 0:00:09.1]} 21. Rd1 {[%clk 0:00:16.7]} 21... Rfd8 {[%clk
0:00:06.6]} 22. a4 {[%clk 0:00:12.4]} 22... b6 {[%clk 0:00:06.8]} 23. Bd4 {[%clk
0:00:11.7]} 23... Rac8 {[%clk 0:00:07.3]} 24. Ra1 {[%clk 0:00:09.8]} 24... Rc4
{[%clk 0:00:06.7]} 25. a5 {[%clk 0:00:09.7]} 25... b5 {[%clk 0:00:06.9]} 26. Re3
{[%clk 0:00:08.9]} 26... a6 {[%clk 0:00:06.9]} 27. Rd1 {[%clk 0:00:08]} 27... g6
{[%clk 0:00:07.1]} 28. Bc5 {[%clk 0:00:08.1]} 28... Rc8 {[%clk 0:00:05.6]} 29.
Red3 {[%clk 0:00:08.4]} 29... Kg7 {[%clk 0:00:03.3]} 30. Bd4+ {[%clk 0:00:08.6]}
30... Kg8 {[%clk 0:00:03.9]} 31. Bc5 {[%clk 0:00:08.7]} 31... Kg7 {[%clk
0:00:04]} 32. Bd4+ {[%clk 0:00:09.1]} 32... Kg8 {[%clk 0:00:04.7]} 33. Bc5
{[%clk 0:00:09.6]} 1/2-1/2

[Event "Early-Titled-Tuesday-Blitz-February-20-2024"]
[Site "Chess.com"]
[Date "2024.02.20"]
[Round "3"]
[White "PositionalPanther"]
[Black "Alexander_Donchenko"]
[Result "0-1"]
[WhiteElo "2514"]
[BlackElo "2924"]
[TimeControl "180+1"]
[EndTime "8:28:31 PST"]
[Termination "Alexander_Donchenko won by resignation"]

1. Nf3 {[%clk 0:03:00.9]} 1... Nf6 {[%clk 0:02:59.7]} 2. g3 {[%clk 0:03:01.3]}
2... g6 {[%clk 0:03:00.2]} 3. b3 {[%clk 0:03:01.8]} 3... Bg7 {[%clk 0:03:00.7]}
4. Bb2 {[%clk 0:03:02.7]} 4... O-O {[%clk 0:03:01.1]} 5. Bg2 {[%clk 0:03:01.4]}
5... a5 {[%clk 0:03:00.5]} 6. a3 {[%clk 0:02:57.3]} 6... d5 {[%clk 0:02:59.5]}
7. O-O {[%clk 0:02:56.8]} 7... c6 {[%clk 0:02:59.3]} 8. c4 {[%clk 0:02:55.4]}
8... Bg4 {[%clk 0:02:58.7]} 9. d3 {[%clk 0:02:53.2]} 9... Nbd7 {[%clk
0:02:56.4]} 10. Nbd2 {[%clk 0:02:52.8]} 10... Qb6 {[%clk 0:02:56]} 11. Bd4
{[%clk 0:02:42.4]} 11... Qa6 {[%clk 0:02:52.6]} 12. h3 {[%clk 0:02:35.7]} 12...
Bxf3 {[%clk 0:02:52.1]} 13. Nxf3 {[%clk 0:02:32.8]} 13... Rfe8 {[%clk 0:02:52]}
14. Qc2 {[%clk 0:01:29.4]} 14... e5 {[%clk 0:02:50.4]} 15. Bb2 {[%clk
0:01:29.5]} 15... e4 {[%clk 0:02:46.8]} 16. dxe4 {[%clk 0:01:20.9]} 16... dxe4
{[%clk 0:02:45.6]} 17. Ng5 {[%clk 0:01:07.4]} 17... e3 {[%clk 0:02:40.5]} 18. f4
{[%clk 0:00:58.6]} 18... h6 {[%clk 0:02:38.5]} 19. Nf3 {[%clk 0:00:57.6]} 19...
Ne4 {[%clk 0:02:36.9]} 20. Bxg7 {[%clk 0:00:50.5]} 20... Kxg7 {[%clk 0:02:37.8]}
21. Ne5 {[%clk 0:00:50.9]} 21... Nxe5 {[%clk 0:02:35]} 22. Bxe4 {[%clk
0:00:45.5]} 22... Nd7 {[%clk 0:02:35]} 23. Qc3+ {[%clk 0:00:39.8]} 23... Nf6
{[%clk 0:02:33.8]} 24. Bc2 {[%clk 0:00:29.6]} 24... c5 {[%clk 0:02:31.5]} 25.
Rad1 {[%clk 0:00:28.3]} 25... Kg8 {[%clk 0:02:25.1]} 26. Kh2 {[%clk 0:00:27.3]}
26... Qc6 {[%clk 0:02:12.3]} 27. Rf3 {[%clk 0:00:26]} 27... Ne4 {[%clk
0:02:06.7]} 28. Bxe4 {[%clk 0:00:25.5]} 28... Qxe4 {[%clk 0:02:07.1]} 29. Qd3
{[%clk 0:00:25.9]} 29... Qc6 {[%clk 0:01:54.9]} 30. a4 {[%clk 0:00:25.4]} 30...
Re7 {[%clk 0:01:48.5]} 31. Rxe3 {[%clk 0:00:24.6]} 31... Rae8 {[%clk 0:01:48.5]}
32. Rxe7 {[%clk 0:00:23.9]} 32... Rxe7 {[%clk 0:01:49.4]} 33. e3 {[%clk
0:00:24.3]} 33... Re8 {[%clk 0:01:39.2]} 34. Re1 {[%clk 0:00:21.8]} 34... Qf3
{[%clk 0:01:38.5]} 35. Qe2 {[%clk 0:00:21.4]} 35... Qe4 {[%clk 0:01:37]} 36. Qd2
{[%clk 0:00:20.5]} 36... h5 {[%clk 0:01:35.7]} 37. Kg1 {[%clk 0:00:20.8]} 37...
b6 {[%clk 0:01:32.3]} 38. Kf2 {[%clk 0:00:20.1]} 38... Qf5 {[%clk 0:01:28.3]}
39. Rh1 {[%clk 0:00:18.4]} 39... Qf6 {[%clk 0:01:27.6]} 40. Kg2 {[%clk
0:00:16.8]} 40... Rd8 {[%clk 0:01:25.4]} 41. Qe2 {[%clk 0:00:16.7]} 41... Qc6+
{[%clk 0:01:25.2]} 42. Kh2 {[%clk 0:00:15.9]} 42... Qe4 {[%clk 0:01:24.3]} 43.
Rd1 {[%clk 0:00:16.1]} 43... Rxd1 {[%clk 0:01:21.4]} 44. Qxd1 {[%clk 0:00:17]}
44... Qxe3 {[%clk 0:01:22]} 45. Qc2 {[%clk 0:00:17]} 45... Qf3 {[%clk
0:01:19.7]} 46. Qb2 {[%clk 0:00:14.7]} 46... h4 {[%clk 0:01:18.9]} 47. gxh4
{[%clk 0:00:14.9]} 47... Qxf4+ {[%clk 0:01:19.5]} 48. Kg2 {[%clk 0:00:15.5]}
48... Qxh4 {[%clk 0:01:19.8]} 49. Qe2 {[%clk 0:00:12.3]} 49... Qg5+ {[%clk
0:01:18.9]} 50. Kh2 {[%clk 0:00:12.1]} 50... Qf4+ {[%clk 0:01:18.8]} 51. Kh1
{[%clk 0:00:12.4]} 51... Qd6 {[%clk 0:01:16.8]} 52. Qe3 {[%clk 0:00:10.9]} 52...
Kg7 {[%clk 0:01:16.1]} 53. Qc3+ {[%clk 0:00:10.7]} 53... Qf6 {[%clk 0:01:11.9]}
54. Qe3 {[%clk 0:00:11.3]} 54... Qb2 {[%clk 0:01:10.8]} 55. Kg1 {[%clk
0:00:11.1]} 55... Qd4 {[%clk 0:01:04.5]} 0-1

[Event "Early-Titled-Tuesday-Blitz-February-20-2024"]
[Site "Chess.com"]
[Date "2024.02.20"]
[Round "3"]
[White "aRk_iN"]
[Black "poummba"]
[Result "1-0"]
[WhiteElo "2179"]
[BlackElo "2367"]
[TimeControl "180+1"]
[EndTime "8:28:31 PST"]
[Termination "aRk_iN won on time"]

1. d4 {[%clk 0:03:00.9]} 1... d5 {[%clk 0:02:58.5]} 2. c4 {[%clk 0:03:00.5]}
2... e6 {[%clk 0:02:57.6]} 3. Nc3 {[%clk 0:03:00.2]} 3... Nf6 {[%clk 0:02:56.8]}
4. cxd5 {[%clk 0:03:00]} 4... exd5 {[%clk 0:02:55.8]} 5. Bg5 {[%clk 0:03:00.7]}
5... c6 {[%clk 0:02:53.9]} 6. e3 {[%clk 0:03:01.2]} 6... Be6 {[%clk 0:02:51.8]}
7. Bd3 {[%clk 0:02:55.7]} 7... Nbd7 {[%clk 0:02:50]} 8. f4 {[%clk 0:02:47.5]}
8... h6 {[%clk 0:02:45.7]} 9. Bh4 {[%clk 0:02:44.1]} 9... g5 {[%clk 0:02:28]}
10. f5 {[%clk 0:02:10.6]} 10... gxh4 {[%clk 0:02:24.5]} 11. fxe6 {[%clk
0:02:10.8]} 11... fxe6 {[%clk 0:02:18.8]} 12. Bg6+ {[%clk 0:02:10.9]} 12... Ke7
{[%clk 0:02:17.7]} 13. Nf3 {[%clk 0:01:58.7]} 13... h3 {[%clk 0:02:05.6]} 14.
gxh3 {[%clk 0:01:47.3]} 14... Qb6 {[%clk 0:01:56.1]} 15. Qc2 {[%clk 0:01:41.9]}
15... Kd8 {[%clk 0:01:38.5]} 16. O-O-O {[%clk 0:01:37.6]} 16... Rc8 {[%clk
0:01:22.1]} 17. Kb1 {[%clk 0:01:34.6]} 17... Kc7 {[%clk 0:01:18.1]} 18. e4
{[%clk 0:01:32.2]} 18... Kb8 {[%clk 0:01:15.8]} 19. e5 {[%clk 0:01:25.7]} 19...
Ng8 {[%clk 0:01:08.9]} 20. Bf7 {[%clk 0:00:45]} 20... c5 {[%clk 0:01:05.3]} 21.
Qg6 {[%clk 0:00:31.6]} 21... cxd4 {[%clk 0:00:59.7]} 22. Ne2 {[%clk 0:00:16.4]}
22... Ba3 {[%clk 0:00:51.2]} 23. Rd2 {[%clk 0:00:11.7]} 23... Bb4 {[%clk
0:00:34.5]} 24. Rxd4 {[%clk 0:00:09.7]} 24... Ne7 {[%clk 0:00:24.1]} 25. Qxe6
{[%clk 0:00:09.3]} 25... Qb5 {[%clk 0:00:08.6]} 26. Nc1 {[%clk 0:00:04.8]} 26...
Rc6 {[%clk 0:00:07]} 27. Qg4 {[%clk 0:00:02.3]} 27... Bc5 {[%clk 0:00:04.1]} 28.
Rdd1 {[%clk 0:00:01.8]} 28... Rhc8 {[%clk 0:00:02.2]} 29. Nb3 {[%clk 0:00:02.2]}
1-0